bitfinex/quotes_SOLUSD_20241031
["timestamp","ask_amount","ask_price","bid_price","bid_amount"]
[1730408194410,22.4776616,168.88,168.83,22.4776616]
[1730408194737,22.4776616,168.87,168.82,22.4776616]
[1730408195216,22.4776616,168.88,168.83,22.4776616]
[1730408195418,42.4776616,168.87,168.82,22.4776616]
[1730408195815,22.4776616,168.86,168.81,22.4776616]
[1730408196020,5.9224,168.85,168.81,22.4776616]
[1730408197314,42.4776616,168.87,168.81,22.4776616]
[1730408197615,5.922,168.86,168.82,22.4776616]
[1730408200317,5.922,168.86,168.83,22.4776616]
[1730408201236,14.8025,168.89,168.85,22.4776616]
[1730408201433,20.0,168.89,168.85,22.4776616]
[1730408201661,20.0,168.89,168.86,22.4776616]
[1730408201967,20.6033434,168.9,168.86,22.4776616]
[1730408202253,0.6033434,168.9,168.86,38.0740616]
[1730408202849,20.0,168.89,168.86,15.5964]
[1730408203438,20.0,168.89,168.86,38.0740616]
[1730408203748,20.6033434,168.9,168.86,38.0740616]
[1730408203951,43.081005,168.9,168.86,15.5964]
[1730408204451,5.921,168.89,168.86,15.5964]
[1730408204834,5.921,168.89,168.86,38.0740616]
[1730408207737,5.921,168.89,168.86,15.5964]
[1730408209353,22.4776616,168.91,168.9,973.4756566]
[1730408209749,37.2778616,168.92,168.9,973.4756566]
[1730408210535,5.9203,168.91,168.9,973.4756566]
[1730408211542,48.3979616,168.91,168.9,973.4756566]
[1730408212461,25.9203,168.91,168.9,973.4756566]
[1730408212643,5.9203,168.91,168.9,973.4756566]
[1730408213962,22.4776616,168.93,168.9,973.4756566]
[1730408214371,20.0,168.93,168.9,973.4756566]
[1730408214541,20.0,168.94,168.9,995.9533182]
[1730408214741,22.4776616,168.94,168.9,973.4756566]
[1730408215664,50.3081,168.96,168.92,22.4776616]
[1730408215665,5.9185,168.96,168.92,22.4776616]
[1730408216469,5.9185,168.96,168.92,14.03249162]
[1730408217273,5.9185,168.96,168.94,14.03249162]
[1730408217575,14.03249162,169.05,168.95,14.15798162]
[1730408217877,14.03249162,169.05,169.0,14.03249162]
[1730408218044,34.73529162,169.06,169.01,14.03249162]
[1730408218248,34.73529162,169.06,169.03,14.03249162]
[1730408218249,5.915,169.06,169.03,14.03249162]
[1730408219264,0.6033434,169.07,169.05,14.03249162]
[1730408219875,0.6033434,169.07,169.06,14.03249162]
[1730408221452,0.6033434,169.07,169.05,14.03249162]
[1730408221853,6.5180434,169.07,169.04,14.03249162]
[1730408222179,6.5180434,169.07,169.01,21.1636]
[1730408222180,6.5180434,169.07,169.03,14.03249162]
[1730408223579,6.5180434,169.07,169.06,14.03249162]
[1730408223580,0.6033434,169.07,169.06,14.03249162]
[1730408225975,0.6033434,169.07,169.06,14.15798162]
[1730408226180,5.9133,169.11,169.08,14.03249162]
[1730408226889,19.94509162,169.13,169.08,14.03249162]
[1730408227068,19.94509162,169.13,169.06,15.56369]
[1730408227069,5.9126,169.13,169.09,14.03249162]
[1730408227579,5.9119,169.15,169.12,14.03249162]
[1730408227760,14.03249162,169.17,169.12,14.03249162]
[1730408227761,19.94389162,169.17,169.12,14.03249162]
[1730408227964,5.9114,169.17,169.12,14.03249162]
[1730408228359,5.9114,169.17,169.15,14.03249162]
[1730408228576,5.9105,169.19,169.16,14.03249162]
[1730408228781,5.9101,169.2,169.17,14.03249162]
[1730408228983,14.03249162,169.25,169.2,15.4459]
[1730408229155,6.5121434,169.24,169.2,29.47839162]
[1730408229581,6.5121434,169.24,169.2,15.4459]
[1730408229971,6.5121434,169.24,169.2,29.47839162]
[1730408230693,6.5121434,169.24,169.2,37.82048206]
[1730408231264,6.5121434,169.24,169.21,22.37458206]
[1730408231584,6.5121434,169.24,169.22,22.37458206]
[1730408231785,0.6033434,169.24,169.23,22.37458206]
[1730408234170,0.6033434,169.24,169.23,22.62556206]
[1730408234695,5.9069,169.3,169.23,29.14066206]
[1730408235078,5.9069,169.3,169.28,22.37458206]
[1730408235607,5.9056,169.33,169.29,22.37458206]
[1730408235774,5.9056,169.33,169.27,16.5402]
[1730408235775,28.28018206,169.33,169.28,22.37458206]
[1730408236295,22.37458206,169.31,169.27,16.5402]
[1730408236472,20.6696,169.33,169.27,16.5402]
[1730408236473,22.37458206,169.3,169.27,16.5402]
[1730408236878,22.37458206,169.31,169.27,16.5402]
[1730408237090,20.6696,169.33,169.27,38.91478206]
[1730408237091,22.37458206,169.32,169.27,38.91478206]
[1730408237696,5.9063,169.31,169.28,22.37458206]
[1730408237998,28.28088206,169.31,169.27,16.5402]
[1730408238299,5.9063,169.31,169.27,38.91478206]
[1730408238982,28.28088206,169.31,169.27,16.5402]
[1730408239472,5.9063,169.31,169.27,38.91478206]
[1730408240886,28.28088206,169.31,169.27,16.5402]
[1730408241092,28.28088206,169.31,169.23,21.6442]
[1730408241093,22.37458206,169.28,169.23,21.6442]
[1730408241287,22.37458206,169.27,169.23,21.6442]
[1730408241594,22.37458206,169.27,169.23,44.01878206]
[1730408241997,22.37458206,169.29,169.24,22.50007206]
[1730408242193,43.04668206,169.31,169.26,22.37458206]
[1730408242376,20.6721,169.31,169.24,22.62556206]
[1730408242581,22.37458206,169.29,169.24,22.37458206]
[1730408242883,22.37458206,169.28,169.23,44.01878206]
[1730408243098,5.9077,169.27,169.23,44.01878206]
[1730408243478,22.37458206,169.3,169.25,22.37458206]
[1730408243798,22.37458206,169.32,169.27,22.37458206]
[1730408243990,43.04288206,169.34,169.29,22.37458206]
[1730408244301,22.37458206,169.33,169.27,22.37458206]
[1730408244499,22.37458206,169.32,169.27,22.37458206]
[1730408244981,5.9063,169.31,169.27,22.37458206]
[1730408245180,28.28088206,169.31,169.25,22.37458206]
[1730408245393,28.28088206,169.31,169.26,22.37458206]
[1730408245696,28.28088206,169.31,169.24,22.37458206]
[1730408245697,22.37458206,169.29,169.24,22.37458206]
[1730408245896,22.37458206,169.3,169.24,22.37458206]
[1730408246480,22.37458206,169.29,169.23,44.01878206]
[1730408246685,22.37458206,169.27,169.23,21.6442]
[1730408246900,22.37458206,169.25,169.23,15.1291]
[1730408247110,22.37458206,169.27,169.23,15.1291]
[1730408247417,22.37458206,169.28,169.23,37.50368206]
[1730408248206,22.37458206,169.26,169.23,15.1291]
[1730408249111,22.37458206,169.27,169.23,15.1291]
[1730408249296,5.907,169.29,169.23,15.1291]
[1730408249297,22.37458206,169.28,169.23,37.50368206]
[1730408249612,5.907,169.29,169.25,22.37458206]
[1730408249807,5.907,169.29,169.27,22.37458206]
[1730408250115,5.9066,169.31,169.28,22.37458206]
[1730408250491,5.9066,169.31,169.27,13.97380216]
[1730408250992,5.9066,169.31,169.26,13.97380216]
[1730408251194,13.97380216,169.29,169.24,14.22478216]
[1730408252001,13.97380216,169.29,169.24,13.97380216]
[1730408252612,13.97380216,169.28,169.23,29.10290216]
[1730408253124,19.88200216,169.26,169.23,15.1291]
[1730408253416,5.9082,169.26,169.24,13.97380216]
[1730408253999,5.9082,169.26,169.25,13.97380216]
[1730408254199,5.9082,169.26,169.24,13.97380216]
[1730408254405,5.9066,169.3,169.25,13.97380216]
[1730408254593,5.9066,169.3,169.26,13.97380216]
[1730408255195,5.9066,169.3,169.28,13.97380216]
[1730408256115,5.9066,169.3,169.27,13.97380216]
[1730408256415,13.97380216,169.33,169.28,13.97380216]
[1730408256605,13.97380216,169.32,169.27,13.97380216]
[1730408256991,13.97380216,169.33,169.28,13.97380216]
[1730408257192,13.97380216,169.32,169.27,13.97380216]
[1730408257414,13.97380216,169.3,169.25,13.97380216]
[1730408257907,13.97380216,169.29,169.24,13.97380216]
[1730408258106,13.97380216,169.28,169.23,29.10290216]
[1730408258510,13.97380216,169.29,169.24,13.97380216]
[1730408258694,13.97380216,169.29,169.23,15.1291]
[1730408258695,13.97380216,169.3,169.25,13.97380216]
[1730408259412,5.907,169.29,169.25,13.97380216]
[1730408259804,5.907,169.29,169.26,13.97380216]
[1730408260893,5.9066,169.3,169.26,13.97380216]
[1730408261094,5.9066,169.3,169.25,13.97380216]
[1730408261294,13.97380216,169.29,169.24,13.97380216]
[1730408262433,13.97380216,169.27,169.23,15.1291]
[1730408262806,34.64950216,169.28,169.23,15.1291]
[1730408263318,13.97380216,169.27,169.23,15.1291]
[1730408263824,5.9073,169.28,169.24,13.97380216]
[1730408264002,5.9073,169.28,169.25,13.97380216]
[1730408264506,5.907,169.29,169.25,13.97380216]
[1730408264907,5.9059,169.32,169.28,13.97380216]
[1730408265106,5.9059,169.32,169.3,13.97380216]
[1730408265602,5.9045,169.36,169.31,13.97380216]
[1730408266002,5.9045,169.36,169.32,13.97380216]
[1730408266303,28.73360216,169.38,169.33,13.97380216]
[1730408266507,5.9042,169.37,169.33,22.34514904]
[1730408267601,22.34514904,169.37,169.32,22.34514904]
[1730408269698,5.9045,169.36,169.32,22.34514904]
[1730408270335,5.9045,169.36,169.31,16.2947]
[1730408270336,5.9045,169.36,169.31,38.63984904]
[1730408271533,5.9045,169.36,169.32,22.34514904]
[1730408271906,5.9045,169.36,169.31,38.63984904]
[1730408272620,5.9045,169.36,169.32,22.34514904]
[1730408273528,22.34514904,169.36,169.31,38.63984904]
[1730408273927,22.34514904,169.35,169.29,22.34514904]
[1730408274118,22.34514904,169.35,169.3,22.34514904]
[1730408274326,22.34514904,169.36,169.31,22.34514904]
[1730408275031,22.34514904,169.37,169.32,22.34514904]
[1730408275534,22.34514904,169.36,169.31,22.34514904]
[1730408276007,28.24934904,169.37,169.32,22.34514904]
[1730408277032,5.9042,169.37,169.33,22.34514904]
[1730408277423,5.9042,169.37,169.34,37.37514904]
[1730408277827,5.9042,169.37,169.34,15.03]
[1730408278228,22.34514904,169.36,169.31,0.12549]
[1730408278431,22.34514904,169.37,169.32,22.34514904]
[1730408279131,22.34514904,169.38,169.33,22.34514904]
[1730408279541,28.24934904,169.37,169.32,22.34514904]
[1730408280215,22.34514904,169.35,169.3,37.50063904]
[1730408280416,22.34514904,169.36,169.31,22.34514904]
[1730408281227,22.34514904,169.36,169.32,22.34514904]
[1730408281437,14.7579,169.4,169.33,22.34514904]
[1730408281438,22.34514904,169.38,169.33,22.34514904]
[1730408281614,5.9035,169.39,169.32,22.34514904]
[1730408281615,22.34514904,169.37,169.32,22.34514904]
[1730408282438,22.34514904,169.36,169.31,22.34514904]
[1730408282948,22.34514904,169.36,169.32,22.34514904]
[1730408283448,5.9049,169.35,169.32,22.34514904]
[1730408283937,6.5062434,169.41,169.35,24.153354]
[1730408284138,6.5062434,169.41,169.38,22.34514904]
[1730408284325,22.34514904,169.4,169.35,22.34514904]
[1730408284531,6.5062434,169.41,169.34,16.0626]
[1730408284939,28.85139244,169.41,169.36,22.34514904]
[1730408286545,20.4672803,169.41,169.36,13.9610369]
[1730408289058,6.5062434,169.41,169.36,13.9610369]
[1730408289529,20.4672803,169.41,169.36,13.9610369]
[1730408289849,13.9610369,169.4,169.35,13.9610369]
[1730408290243,6.5062434,169.41,169.34,30.0236369]
[1730408290244,19.8645369,169.39,169.34,30.0236369]
[1730408290629,13.9610369,169.36,169.31,13.9610369]
[1730408291346,13.9610369,169.37,169.32,13.9610369]
[1730408292031,13.9610369,169.36,169.31,13.9610369]
[1730408292433,13.9610369,169.34,169.3,16.4252]
[1730408292651,13.9610369,169.35,169.3,30.3862369]
[1730408292953,13.9610369,169.33,169.28,13.9610369]
[1730408293539,44.7566974,169.41,169.4,921.7959262]
[1730408294532,50.6594974,169.41,169.4,921.7959262]
[1730408294931,64.2440643,169.41,169.4,921.7959262]
[1730408295639,64.3695543,169.41,169.4,921.7959262]
[1730408297630,78.5815712,169.41,169.4,912.1611262]
[1730408297838,78.5815712,169.41,169.4,831.5465312]
[1730408298038,78.5815712,169.41,169.4,812.8041312]
[1730408298533,78.5815712,169.41,169.4,804.0816312]
[1730408298831,85.1565712,169.41,169.4,738.87663848]
[1730408299036,85.1565712,169.41,169.4,707.81843848]
[1730408299249,71.0955343,169.41,169.4,707.81843848]
[1730408299553,20.4671803,169.41,169.4,699.39523848]
[1730408300844,40.4671803,169.41,169.4,699.39523848]
[1730408301463,64.2440643,169.41,169.4,699.39523848]
[1730408302963,26.5061434,169.41,169.4,699.39523848]
[1730408305361,6.5061434,169.41,169.4,699.39523848]
[1730408306346,6.5061434,169.41,169.4,699.49523848]
[1730408307356,0.6033434,169.41,169.4,699.49523848]
[1730408307567,0.6033434,169.41,169.4,713.45627538]
[1730408307769,0.6033434,169.41,169.4,713.70725538]
[1730408307942,0.6033434,169.41,169.4,735.33617538]
[1730408308146,0.6033434,169.41,169.4,729.43307538]
[1730408308969,0.6033434,169.41,169.4,735.33617538]
[1730408309148,0.6033434,169.41,169.4,735.71264538]
[1730408309572,14.7486,169.51,169.4,735.71264538]
[1730408309573,39.8607369,169.5,169.46,0.1]
[1730408309875,28.7061369,169.55,169.49,13.9610369]
[1730408310053,13.9610369,169.53,169.49,0.1]
[1730408310255,13.9610369,169.52,169.49,0.1]
[1730408310575,13.9610369,169.52,169.48,0.1]
[1730408310805,13.9610369,169.52,169.49,0.1]
[1730408310946,13.9610369,169.51,169.49,0.1]
[1730408311269,5.8993,169.51,169.49,0.1]
[1730408311654,5.8993,169.51,169.48,14.0610369]
[1730408311967,13.9610369,169.54,169.5,15.7475]
[1730408312166,5.8972,169.57,169.53,14.0610369]
[1730408312553,5.8972,169.57,169.54,14.0610369]
[1730408312751,5.8972,169.57,169.56,13.9610369]
[1730408313073,5.8972,169.57,169.56,14.0610369]
[1730408313758,5.8972,169.57,169.56,0.1]
[1730408319953,34.6013369,169.57,169.53,0.1]
[1730408320159,13.9610369,169.54,169.52,0.1]
[1730408320376,13.9610369,169.53,169.52,0.1]
[1730408320861,13.9610369,169.55,169.53,0.1]
[1730408321174,13.9610369,169.55,169.54,0.1]
[1730408321469,13.9610369,169.55,169.5,29.7085369]
[1730408321470,34.6013369,169.57,169.55,0.1]
[1730408321668,34.6013369,169.57,169.56,0.1]
[1730408325384,34.6013369,169.57,169.55,0.1]
[1730408325597,13.9610369,169.56,169.52,0.1]
[1730408325884,13.9610369,169.54,169.53,0.1]
[1730408326099,13.9610369,169.55,169.54,0.1]
[1730408326692,13.9610369,169.55,169.53,0.1]
[1730408326983,13.9610369,169.54,169.53,0.1]
[1730408327676,19.8593369,169.54,169.53,0.1]
[1730408329287,19.8593369,169.54,169.52,0.1]
[1730408329466,19.8593369,169.54,169.53,0.1]
[1730408329987,5.8983,169.54,169.53,0.1]
[1730408330178,13.9610369,169.56,169.53,0.1]
[1730408330487,5.898,169.55,169.54,0.1]
[1730408330693,6.5005434,169.58,169.57,0.1]
[1730408330985,20.4615803,169.58,169.57,0.1]
[1730408336178,44.2384643,169.58,169.57,0.1]
[1730408337371,20.4615803,169.58,169.57,0.1]
[1730408337992,20.4615803,169.58,169.54,0.1]
[1730408338199,21.2428434,169.58,169.57,0.1]
[1730408338582,21.2428434,169.58,169.54,0.1]
[1730408338877,21.2428434,169.58,169.57,0.1]
[1730408339284,35.2038803,169.58,169.54,0.1]
[1730408339478,35.2038803,169.58,169.57,0.1]
[1730408339876,58.9807643,169.58,169.57,0.1]
[1730408340084,58.9807643,169.58,169.54,0.1]
[1730408340377,45.0197274,169.58,169.57,0.1]
[1730408340896,21.2428434,169.58,169.57,0.1]
[1730408341496,35.2038803,169.58,169.57,0.1]
[1730408346182,58.9807643,169.58,169.57,0.1]
[1730408346884,23.776884,169.57,169.53,0.1]
[1730408347192,23.776884,169.57,169.52,0.1]
[1730408347193,13.9610369,169.54,169.52,0.1]
[1730408347494,13.9610369,169.53,169.52,0.1]
[1730408347896,13.9610369,169.56,169.54,0.1]
[1730408348202,13.9610369,169.56,169.55,0.1]
[1730408348384,5.8976,169.56,169.55,0.1]
[1730408349205,0.6033434,169.58,169.57,0.1]
[1730408349385,0.6033434,169.58,169.57,29.4167369]
[1730408352506,14.7359,169.66,169.57,29.4167369]
[1730408352507,5.8948,169.64,169.63,0.1]
[1730408353383,13.9610369,169.67,169.65,0.1]
[1730408353585,5.8941,169.66,169.65,0.1]
[1730408355304,19.8551369,169.66,169.64,0.1]
[1730408355616,13.9610369,169.65,169.63,0.1]
[1730408355803,13.9610369,169.64,169.63,0.1]
[1730408356407,19.8558369,169.64,169.63,0.1]
[1730408356598,19.8558369,169.64,169.62,0.1]
[1730408356791,13.9610369,169.63,169.62,0.1]
[1730408357489,19.8558369,169.64,169.63,0.1]
[1730408357702,19.8558369,169.64,169.58,13.9610369]
[1730408357703,19.8558369,169.64,169.62,0.1]
[1730408357897,13.9610369,169.65,169.63,0.1]
[1730408358412,13.9610369,169.65,169.64,0.1]
[1730408359202,13.9610369,169.65,169.62,0.1]
[1730408359590,13.9610369,169.65,169.64,0.1]
[1730408359791,13.9610369,169.66,169.64,0.1]
[1730408360010,5.8944,169.65,169.64,0.1]
[1730408360603,19.8554369,169.65,169.64,0.1]
[1730408361717,19.8554369,169.65,169.62,0.1]
[1730408361893,13.9610369,169.64,169.62,0.1]
[1730408362093,13.9610369,169.64,169.63,0.1]
[1730408362998,13.9610369,169.64,169.62,0.1]
[1730408364631,13.9610369,169.65,169.62,0.1]
[1730408365130,13.9610369,169.64,169.62,0.1]
[1730408365910,13.9610369,169.65,169.63,0.1]
[1730408366128,28.6966369,169.66,169.64,0.1]
[1730408366325,28.6966369,169.66,169.65,0.1]
[1730408366636,13.9610369,169.66,169.65,0.1]
[1730408366931,19.8551369,169.66,169.65,0.1]
[1730408368439,19.8551369,169.66,169.64,0.1]
[1730408368610,13.9610369,169.65,169.64,0.1]
[1730408368810,19.8554369,169.65,169.63,0.1]
[1730408369006,19.8554369,169.65,169.64,0.1]
[1730408369212,5.8944,169.65,169.64,0.1]
[1730408370316,19.8554369,169.65,169.64,0.1]
[1730408370522,5.8944,169.65,169.64,0.1]
[1730408370734,13.9610369,169.67,169.64,0.1]
[1730408371029,5.8941,169.66,169.65,0.1]
[1730408376034,8.90698939,169.66,169.65,0.1]
[1730408377838,14.80108939,169.66,169.65,0.1]
[1730408380531,14.80108939,169.66,169.64,0.1]
[1730408380750,8.90698939,169.65,169.62,0.1]
[1730408380926,8.90698939,169.63,169.62,0.1]
[1730408381749,8.90698939,169.63,169.61,0.1]
[1730408381929,8.90698939,169.62,169.61,0.1]
[1730408383650,14.80248939,169.62,169.61,0.1]
[1730408384747,14.80248939,169.62,169.59,0.1]
[1730408384962,5.8955,169.62,169.6,0.1]
[1730408385454,8.90698939,169.61,169.6,0.1]
[1730408385830,44.53494695,169.61,169.57,0.1]
[1730408386147,8.90698939,169.58,169.57,0.1]
[1730408386535,8.90698939,169.58,169.55,0.1]
[1730408386852,8.90698939,169.56,169.55,0.1]
[1730408389251,5.8976,169.56,169.55,0.1]
[1730408389765,8.90698939,169.64,169.63,0.1]
[1730408391135,14.80178939,169.64,169.63,0.1]
[1730408392360,14.80178939,169.64,169.62,0.1]
[1730408392541,13.92836195,169.63,169.62,0.1]
[1730408392861,13.92836195,169.63,169.61,0.1]
[1730408393059,13.92836195,169.62,169.61,0.1]
[1730408394483,13.92836195,169.62,169.6,0.1]
[1730408394484,19.82386195,169.62,169.6,0.1]
[1730408394655,5.8955,169.62,169.61,0.1]
[1730408394859,5.8955,169.62,169.6,0.1]
[1730408396180,13.92836195,169.61,169.6,0.1]
[1730408397877,19.82416195,169.61,169.6,0.1]
[1730408398171,5.8958,169.61,169.6,0.1]
[1730408398375,19.82416195,169.61,169.6,0.1]
[1730408398871,19.82416195,169.61,169.59,0.1]
[1730408399067,19.82416195,169.61,169.54,6.189]
[1730408399068,13.92836195,169.6,169.57,0.1]
[1730408399378,13.92836195,169.58,169.56,0.1]
[1730408399671,13.92836195,169.58,169.53,15.6745]
[1730408399672,44.412284,169.61,169.57,0.1]
[1730408399872,5.8965,169.59,169.57,0.1]
[1730408400067,5.8965,169.59,169.58,0.1]
[1730408400268,19.82486195,169.59,169.58,0.1]
[1730408400456,19.82486195,169.59,169.55,0.1]
[1730408400655,13.92836195,169.56,169.53,15.7745]
[1730408400847,23.776884,169.58,169.54,0.1]
[1730408401047,23.776884,169.58,169.53,15.6745]
[1730408401048,13.92836195,169.55,169.52,0.1]
[1730408401366,13.92836195,169.53,169.52,0.1]
[1730408401563,13.92836195,169.53,169.51,0.1]
[1730408401765,13.92836195,169.52,169.5,0.1]
[1730408402083,19.82766195,169.51,169.47,0.1]
[1730408402375,13.92836195,169.49,169.48,0.1]
[1730408403957,19.82836195,169.49,169.48,0.1]
[1730408406471,19.82836195,169.49,169.47,0.1]
[1730408406671,13.92836195,169.48,169.46,0.1]
[1730408406982,13.92836195,169.47,169.45,0.1]
[1730408407161,13.92836195,169.46,169.44,0.1]
[1730408407475,13.92836195,169.45,169.43,0.1]
[1730408407681,13.92836195,169.44,169.43,0.1]
[1730408408269,19.83006195,169.44,169.43,0.1]
[1730408408474,19.83006195,169.44,169.41,0.1]
[1730408408655,13.92836195,169.42,169.41,0.1]
[1730408408856,13.92836195,169.42,169.4,699.49523848]
[1730408409055,13.92836195,169.41,169.4,699.49523848]
[1730408409269,13.92836195,169.42,169.4,699.49523848]
[1730408410056,13.92836195,169.41,169.4,699.49523848]
[1730408410252,19.83116195,169.41,169.4,699.49523848]
[1730408412972,13.92836195,169.44,169.43,0.1]
[1730408413990,13.92836195,169.44,169.4,699.39523848]
[1730408413991,13.92836195,169.44,169.4,699.49523848]
[1730408414176,13.92836195,169.41,169.4,699.49523848]
[1730408414375,19.83116195,169.41,169.4,699.49523848]
[1730408415487,19.83116195,169.41,169.4,699.39523848]
[1730408415658,19.83116195,169.41,169.4,699.49523848]
[1730408416063,5.9026,169.42,169.41,0.1]
[1730408416283,19.83096195,169.42,169.41,0.1]
[1730408416586,19.83096195,169.42,169.4,699.39523848]
[1730408416755,13.92836195,169.41,169.4,699.49523848]
[1730408418394,19.83116195,169.41,169.4,699.49523848]
[1730408418680,19.83116195,169.41,169.4,699.39523848]
[1730408421184,43.60804595,169.41,169.4,699.39523848]
[1730408421492,19.83116195,169.41,169.4,699.49523848]
[1730408422464,14.83841689,169.41,169.4,699.49523848]
[1730408423177,14.83841689,169.41,169.4,699.39523848]
[1730408423373,14.83841689,169.41,169.4,699.49523848]
[1730408423575,14.83841689,169.41,169.4,699.39523848]
[1730408423882,14.83841689,169.41,169.4,699.49523848]
[1730408424287,14.83841689,169.41,169.4,699.39523848]
[1730408424597,38.61530089,169.41,169.4,699.39523848]
[1730408425271,94.83423845,169.41,169.4,647.02124213]
[1730408426291,94.83423845,169.41,169.4,630.31382401]
[1730408426465,78.10664152,169.41,169.4,586.42553299]
[1730408426667,78.10664152,169.41,169.4,563.79313299]
[1730408426895,78.10664152,169.41,169.4,552.78323299]
[1730408427117,84.2018074,169.41,169.4,542.29823299]
[1730408427267,84.2018074,169.41,169.4,527.12393299]
[1730408427464,78.10664152,169.41,169.4,527.12393299]
[1730408427768,85.40841094,169.41,169.4,466.92743361]
[1730408428267,85.40841094,169.41,169.4,414.55343726]
[1730408428885,85.40841094,169.41,169.4,395.3778275]
[1730408429390,79.31294152,169.41,169.4,395.3778275]
[1730408429589,85.40956948,169.41,169.4,395.3778275]
[1730408430095,85.40956948,169.41,169.4,386.20212812]
[1730408431300,85.40956948,169.41,169.4,342.72624226]
[1730408432005,85.40956948,169.41,169.4,323.5506325]
[1730408433807,70.22802572,169.41,169.4,323.5506325]
[1730408434509,84.20326948,169.41,169.4,323.5506325]
[1730408434811,78.10664152,169.41,169.4,323.5506325]
[1730408435190,78.10664152,169.41,169.4,251.7234375]
[1730408435485,84.20165685,169.41,169.4,251.7234375]
[1730408437909,84.20165685,169.41,169.4,156.1262425]
[1730408439313,78.10664152,169.41,169.4,156.1262425]
[1730408439615,64.13139776,169.41,169.4,156.1262425]
[1730408439788,20.10353376,169.41,169.4,156.1262425]
[1730408441016,64.13139776,169.41,169.4,156.1262425]
[1730408445796,78.10664152,169.41,169.4,156.1262425]
[1730408445998,84.468796,169.41,169.4,84.2990475]
[1730408446297,97.35823707,169.41,169.4,75.40093701]
[1730408446501,87.30001949,169.41,169.4,29.90970408]
[1730408446708,0.1,169.35,169.29,15.6119]
[1730408446908,8.94613497,169.31,169.29,15.6119]
[1730408447112,8.94613497,169.3,169.27,6.1043]
[1730408447328,8.94613497,169.29,169.25,15.0199]
[1730408447697,8.94613497,169.28,169.25,15.0199]
[1730408447910,8.94613497,169.27,169.22,8.94613497]
[1730408448222,8.94613497,169.23,169.21,15.7112]
[1730408448423,0.1,169.27,169.21,15.7112]
[1730408448600,13.99424801,169.23,169.21,15.7112]
[1730408448795,33.99424801,169.22,169.19,0.1]
[1730408449112,33.99424801,169.22,169.18,6.1009]
[1730408449320,33.99424801,169.2,169.16,16.4145434]
[1730408449627,38.02211201,169.19,169.16,16.3145434]
[1730408449939,19.90504801,169.18,169.16,16.3145434]
[1730408450121,19.90504801,169.18,169.16,0.6033434]
[1730408450311,13.99424801,169.17,169.16,0.6033434]
[1730408451017,33.99424801,169.17,169.16,0.6033434]
[1730408454321,39.90544801,169.17,169.16,0.6033434]
[1730408455608,5.9112,169.17,169.16,14.59759141]
[1730408455897,28.76894801,169.21,169.16,14.59759141]
[1730408456097,5.9101,169.2,169.19,14.09424801]
[1730408456627,6.03419,169.24,169.19,14.09424801]
[1730408456922,6.03419,169.24,169.2,13.99424801]
[1730408457329,20.0,169.23,169.21,16.6092]
[1730408457631,5.39213854,169.27,169.21,16.6092]
[1730408457632,5.908,169.26,169.22,13.99424801]
[1730408457927,5.908,169.26,169.23,13.99424801]
[1730408458135,5.908,169.26,169.22,0.1]
[1730408458136,5.908,169.26,169.22,14.09424801]
[1730408459212,5.9087,169.24,169.22,14.09424801]
[1730408460336,19.90294801,169.24,169.21,16.6092]
[1730408460503,33.99424801,169.23,169.21,16.6092]
[1730408460706,33.99424801,169.23,169.19,0.1]
[1730408460920,33.99424801,169.23,169.17,29.23404801]
[1730408460921,20.0,169.21,169.17,29.23404801]
[1730408461359,20.0,169.21,169.17,15.2398]
[1730408461360,5.9101,169.2,169.17,15.2398]
[1730408461831,5.9101,169.2,169.18,13.99424801]
[1730408462831,5.9101,169.2,169.17,29.13404801]
[1730408463013,5.9101,169.2,169.17,15.2398]
[1730408463216,5.9101,169.2,169.17,29.13404801]
[1730408463533,5.9101,169.2,169.17,29.23404801]
[1730408464126,0.12549,169.19,169.17,15.1398]
[1730408464447,13.99424801,169.18,169.16,0.6033434]
[1730408464627,20.0,169.17,169.16,0.6033434]
[1730408465127,39.90544801,169.17,169.16,0.6033434]
[1730408465632,63.93331201,169.17,169.16,0.6033434]
[1730408465843,64.05880201,169.17,169.16,0.6033434]
[1730408466740,49.939064,169.17,169.16,0.6033434]
[1730408467030,25.9112,169.17,169.16,0.6033434]
[1730408469848,39.90544801,169.17,169.16,0.6033434]
[1730408470217,25.9112,169.17,169.16,0.6033434]